bitfinex-derivatives/quotes_SOLF0:USTF0_20241229
["timestamp","ask_amount","ask_price","bid_price","bid_amount"]
[1735431014094,2.5721,194.75,194.74,3.08]
[1735431015099,3.08,194.84,194.7,16.84568444]
[1735431015293,12.69068444,194.82,194.7,14.27308444]
[1735431015597,12.69068444,194.82,194.7,1.5824]
[1735431016093,2.5726,194.72,194.7,1.5824]
[1735431016895,2.5724,194.73,194.7,1.5824]
[1735431017200,12.69068444,194.82,194.7,1.5824]
[1735431018099,2.5716,194.79,194.7,1.5824]
[1735431018296,3.08,194.79,194.7,4.1552]
[1735431018899,2.5723,194.74,194.7,4.1552]
[1735431019802,2.5724,194.73,194.7,1.5824]
[1735431020200,3.08,194.83,194.7,14.27308444]
[1735431020402,2.5718,194.78,194.74,2.5722]
[1735431020601,3.08,194.83,194.74,2.5722]
[1735431021497,2.5718,194.78,194.74,2.5722]
[1735431021697,3.08,194.83,194.73,2.5723]
[1735431023401,2.572,194.76,194.73,2.5723]
[1735431024402,3.08,194.83,194.7,14.27308444]
[1735431024599,3.08,194.83,194.71,3.08]
[1735431025208,12.69068444,194.82,194.7,1.5824]
[1735431025504,12.69068444,194.79,194.69,3.0565]
[1735431026206,2.5725,194.72,194.69,5.6293]
[1735431026707,12.69068444,194.79,194.69,3.0565]
[1735431026900,12.69068444,194.79,194.69,1.4844]
[1735431027103,3.08,194.78,194.69,1.4844]
[1735431028004,2.5728,194.7,194.69,1.4844]
[1735431029104,3.08,194.78,194.69,1.4844]
[1735431029403,3.08,194.78,194.7,12.69068444]
[1735431029705,2.5721,194.76,194.72,2.5724]
[1735431029905,17.83328444,194.82,194.72,2.5724]
[1735431030703,12.69068444,194.82,194.71,2.964]
[1735431030908,12.69068444,194.85,194.71,2.964]
[1735431031112,3.08,194.87,194.73,12.69068444]
[1735431031305,3.08,194.87,194.76,12.69068444]
[1735431031704,2.5712,194.82,194.78,2.5716]
[1735431031904,3.08,194.87,194.76,12.69068444]
[1735431032103,3.08,194.87,194.74,3.08]
[1735431032508,12.69068444,194.85,194.74,3.08]
[1735431032808,12.69068444,194.82,194.71,2.964]
[1735431033010,2.5716,194.79,194.71,2.964]
[1735431033198,15.77068444,194.82,194.71,2.964]
[1735431033599,2.5716,194.79,194.71,5.5366]
[1735431033911,15.77068444,194.82,194.71,5.5366]
[1735431034414,15.77068444,194.82,194.74,2.5722]
[1735431034609,15.77068444,194.82,194.71,2.964]
[1735431035606,2.5726,194.71,194.7,3.08]
[1735431036011,2.5726,194.71,194.68,2.573]
[1735431036207,2.5726,194.71,194.67,15.26378444]
[1735431036511,3.08,194.77,194.66,1.5288]
[1735431036711,2.5728,194.7,194.66,1.5288]
[1735431037709,2.5726,194.72,194.66,1.5288]
[1735431038110,2.5726,194.72,194.68,2.573]
[1735431038613,12.69068444,194.79,194.67,12.69068444]
[1735431038911,3.08,194.81,194.67,12.69068444]
[1735431039209,15.77068444,194.82,194.71,2.5726]
[1735431039807,2.5722,194.75,194.71,2.5726]
[1735431041513,15.77068444,194.82,194.7,12.69068444]
[1735431041713,3.08,194.82,194.7,12.69068444]
[1735431042514,2.5717,194.78,194.74,2.5721]
[1735431042915,5.1404,194.9,194.73,12.69068444]
[1735431043117,2.5715,194.8,194.76,2.5719]
[1735431043721,2.5712,194.82,194.78,2.5717]
[1735431043915,67.57342872,194.91,194.77,1.5249]
[1735431044214,2.5711,194.83,194.79,2.5715]
[1735431044414,2.5711,194.83,194.77,1.5249]
[1735431045118,2.5709,194.84,194.77,1.5249]
[1735431045311,3.06,194.93,194.79,12.69068444]
[1735431045511,2.5706,194.87,194.83,2.571]
[1735431047007,12.69068444,194.94,194.84,2.5708]
[1735431047207,12.69068444,194.94,194.85,1.4812]
[1735431047407,15.75068444,194.97,194.85,4.5412]
[1735431047610,2.5701,194.9,194.85,4.5412]
[1735431048418,2.5701,194.9,194.86,2.5706]
[1735431050413,2.5704,194.89,194.85,4.5412]
[1735431051018,15.75068444,194.97,194.85,4.5412]
[1735431051213,2.5701,194.91,194.86,2.5705]
[1735431051413,1.69530683,194.98,194.85,17.23188444]
[1735431051820,1.69530683,194.98,194.88,12.69068444]
[1735431052411,2.5695,194.95,194.9,2.57]
[1735431053314,2.5695,194.95,194.88,12.69068444]
[1735431053521,2.5693,194.97,194.91,12.69068444]
[1735431054009,12.69068444,195.03,194.91,12.69068444]
[1735431054212,12.69068444,195.03,194.92,3.0728]
[1735431054411,12.69068444,195.03,194.94,2.5695]
[1735431054718,56.71712863,195.04,194.95,3.06]
[1735431054923,56.71712863,195.04,194.96,2.5692]
[1735431055113,2.5688,195.01,194.96,2.5692]
[1735431055418,12.69068444,195.08,194.95,3.06]
[1735431055616,15.75068444,195.08,194.98,2.569]
[1735431055809,2.5685,195.02,194.98,2.569]
[1735431056213,2.5685,195.02,194.95,3.06]
[1735431056613,12.69068444,195.08,194.95,3.06]
[1735431057012,12.69068444,195.08,194.95,5.6293]
[1735431057419,2.5689,195.0,194.96,2.5693]
[1735431058023,2.5693,194.97,194.94,12.69068444]
[1735431058320,12.69068444,195.05,194.93,1.518]
[1735431058521,3.06,195.04,194.93,1.518]
[1735431058721,2.5692,194.97,194.93,4.0877]
[1735431059721,2.5689,194.99,194.95,2.5694]
[1735431060115,3.06,195.04,194.95,2.5694]
[1735431060320,2.5691,194.98,194.94,2.5696]
[1735431062114,2.5692,194.97,194.93,1.518]
[1735431062317,12.69068444,195.02,194.93,1.518]
[1735431062626,3.06,195.04,194.94,12.69068444]
[1735431062826,2.5687,195.01,194.96,2.5692]
[1735431063021,15.75068444,195.08,194.96,5.6292]
[1735431063826,2.5689,195.0,194.96,5.6292]
[1735431065824,15.75068444,195.08,194.96,3.06]
[1735431066030,12.69068444,195.08,194.97,12.69068444]
[1735431066229,12.69068444,195.11,194.97,12.69068444]
[1735431066426,12.69068444,195.08,194.93,1.518]
[1735431066626,12.69068444,195.02,194.93,1.518]
[1735431067033,3.06,195.07,194.94,12.69068444]
[1735431067223,3.06,195.07,194.94,14.26868444]
[1735431067428,2.5689,195.0,194.96,2.5692]
[1735431067628,3.06,195.07,194.96,2.5692]
[1735431068025,3.06,195.07,194.94,14.26868444]
[1735431068232,3.06,195.07,194.97,2.5691]
[1735431068734,2.5688,195.01,194.97,2.5691]
[1735431069239,3.06,195.07,194.95,1.553]
[1735431069534,2.5689,194.99,194.96,2.5693]
[1735431070238,2.5688,195.0,194.97,2.5692]
[1735431070626,2.5682,195.05,194.97,15.75068444]
[1735431070829,3.06,195.09,194.99,2.5689]
[1735431071728,3.06,195.09,194.98,2.569]
[1735431071932,12.69068444,195.08,194.97,15.75068444]
[1735431072236,12.69068444,195.08,194.95,1.553]
[1735431072538,12.69068444,195.05,194.95,1.553]
[1735431072739,3.08,195.04,194.93,1.518]
[1735431073534,2.5696,194.94,194.93,1.518]
[1735431076041,2.5695,194.95,194.93,1.518]
[1735431076242,12.69068444,195.02,194.93,1.518]
[1735431076644,2.5696,194.94,194.93,1.518]
[1735431079648,3.08,195.04,194.88,4.0466]
[1735431079649,2.57,194.91,194.88,4.0466]
[1735431080845,2.5702,194.9,194.88,1.4762]
[1735431082550,2.57,194.91,194.88,1.4762]
[1735431082744,15.77068444,194.99,194.88,1.4762]
[1735431083153,2.5697,194.94,194.89,2.5701]
[1735431083346,15.77068444,194.99,194.89,2.5701]
[1735431083947,2.5698,194.93,194.89,2.5701]
[1735431084751,12.69068444,195.02,194.9,2.57]
[1735431084955,3.08,195.02,194.89,12.69068444]
[1735431085157,12.69068444,195.04,194.92,12.69068444]
[1735431085355,7.10538172,195.08,194.96,2.5692]
[1735431085356,2.5689,195.0,194.96,2.5692]
[1735431086353,2.5689,195.0,194.97,2.5691]
[1735431087450,3.08,195.06,194.98,2.569]
[1735431088250,2.5686,195.02,194.98,2.569]
[1735431088964,2.5687,195.01,194.98,2.569]
[1735431089257,3.08,195.06,194.95,18.33998444]
[1735431090462,2.5691,194.98,194.95,18.33998444]
[1735431092260,2.5688,195.01,194.97,2.5691]
[1735431093162,2.5688,195.01,194.95,15.77068444]
[1735431093465,2.5688,195.01,194.98,2.5689]
[1735431094165,2.5689,195.0,194.96,2.5692]
[1735431095260,15.77068444,195.07,194.93,1.5063]
[1735431095860,2.5692,194.97,194.94,2.5695]
[1735431096056,12.69068444,195.1,194.93,1.5063]
[1735431096057,3.08,195.02,194.93,1.5063]
[1735431096467,2.5696,194.95,194.93,1.5063]
[1735431096963,12.69068444,195.01,194.91,7.02376584]
[1735431097560,12.69068444,195.01,194.89,2.5702]
[1735431099061,2.5698,194.93,194.89,2.5702]
[1735431099865,12.69068444,195.01,194.88,3.08]
[1735431100166,12.69068444,194.98,194.89,2.5702]
[1735431101571,2.5698,194.93,194.89,2.5702]
[1735431102669,2.5696,194.94,194.88,15.77068444]
[1735431102867,12.69068444,195.01,194.88,15.77068444]
[1735431103471,2.5693,194.97,194.91,12.69068444]
[1735431103670,15.73068444,195.04,194.92,1.6059]
[1735431103871,2.569,194.99,194.95,2.5693]
[1735431104071,15.73068444,195.04,194.95,2.5693]
[1735431104771,2.5692,194.98,194.94,2.5696]
[1735431105079,15.73068444,195.04,194.94,2.5696]
[1735431105269,15.73068444,195.04,194.93,3.0961]
[1735431105773,2.5693,194.97,194.93,5.6657]
[1735431107576,2.5693,194.97,194.94,2.5696]
[1735431107778,15.73068444,195.04,194.94,2.5696]
[1735431108074,12.69068444,195.07,194.94,12.69068444]
[1735431108278,3.04,195.06,194.94,12.69068444]
[1735431108982,2.5686,195.02,194.98,2.569]
[1735431113289,2.5684,195.04,194.97,12.69068444]
[1735431113481,2.5684,195.04,194.98,3.04]
[1735431113779,3.04,195.09,194.98,3.04]
[1735431114087,2.568,195.06,194.98,3.04]
[1735431114480,12.69068444,195.1,194.98,3.04]
[1735431115486,2.5684,195.03,195.0,2.5687]
[1735431116282,12.69068444,195.07,194.96,3.04]
[1735431116487,3.04,195.06,194.96,3.04]
[1735431116889,2.5689,195.0,194.96,5.6093]
[1735431118085,2.5689,195.0,194.96,3.04]
[1735431118285,2.5689,195.0,194.97,2.5692]
[1735431119983,3.04,195.06,194.96,3.04]
[1735431120189,12.69068444,195.01,194.93,3.0961]
[1735431120382,15.73068444,195.01,194.91,28.32250509]
[1735431120582,2.5697,194.94,194.91,28.32250509]
[1735431120788,15.73068444,195.01,194.91,28.32250509]
[1735431121088,12.69068444,194.98,194.91,28.32250509]
[1735431121791,12.69068444,194.95,194.88,1.5626]
[1735431121987,15.73068444,194.95,194.87,7.02376584]
[1735431122184,2.5704,194.88,194.87,7.02376584]
[1735431123085,2.5704,194.88,194.84,2.5709]
[1735431123490,15.73068444,194.95,194.83,1.4675]
[1735431123993,2.5706,194.87,194.83,1.4675]
[1735431124494,12.69068444,194.92,194.83,1.4675]
[1735431124495,2.5708,194.85,194.83,1.4675]
[1735431124791,12.69068444,194.92,194.83,1.4675]
[1735431124993,2.5709,194.84,194.83,1.4675]
[1735431125193,12.69068444,194.89,194.8,1.6223]
[1735431125384,12.69068444,194.89,194.79,28.32250509]
[1735431125590,2.5714,194.8,194.78,58.19943679]
[1735431125891,12.69068444,194.89,194.78,1.619]
[1735431126085,2.5713,194.81,194.78,1.619]
[1735431126987,12.69068444,194.89,194.78,1.619]
[1735431127295,3.04,194.9,194.79,12.69068444]
[1735431127488,3.04,194.9,194.81,2.5712]
[1735431128093,2.5709,194.85,194.81,2.5712]
[1735431129095,2.5709,194.85,194.8,2.5714]
[1735431130189,3.04,194.9,194.8,2.5714]
[1735431130487,2.5709,194.84,194.8,2.5714]
[1735431130883,2.5706,194.87,194.83,2.571]
[1735431131084,3.04,194.9,194.8,3.04]
[1735431131695,12.69068444,194.92,194.8,3.04]
[1735431132086,3.02,194.96,194.85,12.69068444]
[1735431132288,3.02,194.96,194.86,1.4953]
[1735431132487,2.57,194.91,194.86,4.0659]
[1735431132893,3.02,194.96,194.86,1.4953]
[1735431133093,2.5701,194.9,194.86,1.4953]
[1735431133590,2.5701,194.9,194.86,4.0658]
[1735431133895,57.34430663,194.97,194.88,12.69068444]
[1735431134290,2.5696,194.95,194.91,2.57]
[1735431134691,3.02,194.99,194.88,15.26098444]
[1735431134892,3.02,194.99,194.88,12.69068444]
[1735431135299,2.5697,194.93,194.88,15.26108444]
[1735431135998,2.5695,194.95,194.88,12.69068444]
[1735431136198,3.02,194.99,194.88,12.69068444]
[1735431136699,2.5697,194.94,194.88,15.26088444]
[1735431136897,3.02,194.99,194.88,15.26088444]
[1735431137291,12.69068444,194.98,194.87,1.514]
[1735431137890,2.57,194.91,194.87,1.514]
[1735431138093,12.69068444,194.98,194.87,1.514]
[1735431138301,12.69068444,194.95,194.86,1.4953]
[1735431138497,3.02,194.94,194.86,1.4953]
[1735431139795,2.5701,194.9,194.86,1.4953]
[1735431140193,3.02,194.94,194.86,1.4953]
[1735431140397,2.5705,194.88,194.86,1.4953]
[1735431141399,2.5699,194.92,194.86,4.0659]
[1735431141604,3.02,194.94,194.86,4.0659]
[1735431142298,2.5701,194.91,194.86,4.0659]
[1735431142698,2.5699,194.92,194.87,2.5705]
[1735431142899,2.5699,194.92,194.86,1.4953]
[1735431143103,15.71068444,194.98,194.86,1.4953]
[1735431143296,2.5696,194.95,194.88,12.69068444]
[1735431143498,2.5696,194.95,194.89,1.5513]
[1735431144203,3.02,195.0,194.89,1.5513]
[1735431144403,2.5696,194.94,194.9,2.57]
[1735431145597,2.5696,194.94,194.89,1.5513]
[1735431145799,2.5696,194.94,194.89,4.1214]
[1735431147101,2.5696,194.94,194.89,1.5513]
[1735431147293,3.02,195.0,194.89,1.5513]
[1735431147497,12.69068444,195.01,194.9,3.02]
[1735431147701,2.5693,194.97,194.93,2.5697]
[1735431151902,2.5693,194.97,194.91,1.482]
[1735431152205,2.5693,194.97,194.92,2.5698]
[1735431153007,12.69068444,195.01,194.91,4.052]
[1735431153203,12.69068444,195.01,194.91,1.482]
[1735431154405,2.5691,194.98,194.91,1.482]
[1735431154603,12.69068444,195.01,194.91,1.482]
[1735431155499,2.5697,194.94,194.91,1.482]
[1735431158312,2.5699,194.92,194.89,1.5513]
[1735431158610,3.02,194.97,194.89,1.5513]
[1735431158802,12.69068444,194.95,194.86,1.4953]
[1735431159006,2.5705,194.88,194.86,1.4953]
[1735431159403,12.69068444,194.95,194.86,1.4953]
[1735431160411,2.5703,194.89,194.86,1.4953]
[1735431162309,12.69068444,194.95,194.86,1.4953]
[1735431162505,15.69068444,194.92,194.8,1.5111]
[1735431162706,3.0,194.91,194.8,1.5111]
[1735431163715,12.69068444,194.89,194.8,1.5111]
[1735431164009,3.0,194.91,194.8,1.5111]
[1735431164213,2.5709,194.85,194.8,4.0825]
[1735431164805,2.571,194.84,194.8,4.0825]
[1735431165815,2.5711,194.83,194.8,1.5111]
[1735431166015,3.0,194.91,194.8,1.5111]
[1735431167310,2.5712,194.82,194.8,1.5111]
[1735431167912,3.0,194.91,194.8,1.5111]
[1735431168114,2.571,194.84,194.8,1.5111]
[1735431171212,3.0,194.91,194.8,14.20178444]
[1735431171414,2.5707,194.86,194.8,14.20178444]
[1735431172013,2.5707,194.86,194.81,2.5713]
[1735431172513,2.5707,194.86,194.83,8.10545466]
[1735431173416,8.10545466,194.9,194.83,8.10545466]
[1735431173719,8.10545466,194.86,194.8,9.61655466]
[1735431174809,2.5713,194.81,194.8,9.61655466]
[1735431175015,8.10545466,194.88,194.8,9.61655466]
[1735431175414,8.10545466,194.9,194.82,8.10545466]
[1735431175610,8.10545466,194.88,194.82,8.10545466]
[1735431176115,2.571,194.84,194.82,8.10545466]
[1735431177207,2.5708,194.86,194.82,8.10545466]
[1735431177416,8.10545466,194.93,194.84,8.10545466]
[1735431177613,8.10545466,194.93,194.86,8.10545466]
[1735431177814,8.10545466,194.93,194.86,10.67605466]
[1735431178518,8.10545466,194.93,194.87,1.5617]
[1735431178818,8.10545466,194.93,194.86,8.10545466]
[1735431179021,2.5708,194.85,194.82,9.66715466]
[1735431179217,8.10545466,194.89,194.82,9.66715466]
[1735431179521,2.5705,194.87,194.82,9.66715466]
[1735431179821,8.10545466,194.89,194.82,9.66715466]
[1735431180212,8.10545466,194.89,194.82,8.10545466]
[1735431180419,8.10545466,194.85,194.78,8.10545466]
[1735431180822,2.5716,194.79,194.78,8.10545466]
[1735431182423,2.5714,194.8,194.78,8.10545466]
[1735431183322,2.5717,194.78,194.76,9.62125466]
[1735431184728,8.10545466,194.85,194.76,9.62125466]
[1735431184920,2.5714,194.8,194.78,8.10545466]
[1735431185117,8.10545466,194.85,194.76,1.5158]
[1735431185427,2.5718,194.77,194.76,1.5158]
[1735431187526,5.1399,194.92,194.76,9.62125466]
[1735431187732,8.10545466,194.86,194.76,1.5158]
[1735431187932,8.10545466,194.84,194.76,1.5158]
[1735431188132,2.5715,194.8,194.77,8.10545466]
[1735431188332,3.0,194.86,194.76,1.5158]
[1735431188932,12.67277562,194.84,194.76,1.5158]
[1735431189234,3.0,194.86,194.76,1.5158]
[1735431189825,2.5713,194.82,194.76,14.18857562]
[1735431191033,2.5713,194.82,194.78,2.5716]
[1735431192236,2.5714,194.8,194.76,16.76047562]
[1735431194531,2.5717,194.78,194.76,1.5158]
[1735431195133,2.5716,194.79,194.76,1.5158]
[1735431196136,12.67277562,194.87,194.76,4.0877]
[1735431197231,12.67277562,194.87,194.76,1.5158]
[1735431197937,2.5715,194.8,194.76,4.0877]
[1735431198230,12.67277562,194.87,194.76,1.5158]
[1735431199037,12.67277562,194.84,194.74,28.32250509]
[1735431199234,3.0,194.83,194.73,7.02376584]
[1735431199531,12.67277562,194.81,194.73,7.02376584]
[1735431199732,2.5722,194.74,194.73,7.02376584]
[1735431200435,12.67277562,194.81,194.7,1.5787]
[1735431200436,3.0,194.78,194.7,1.5787]
[1735431200628,2.5726,194.72,194.7,1.5787]
[1735431204430,3.0,194.78,194.7,1.5787]
[1735431205337,12.67277562,194.81,194.7,1.5787]
[1735431205537,10.10538172,194.9,194.75,12.67277562]
[1735431205737,22.77815734,194.9,194.75,12.67277562]
[1735431205938,22.77815734,194.9,194.77,2.5717]
[1735431206140,22.77815734,194.9,194.78,1.568]
[1735431206334,2.5712,194.83,194.78,1.568]
[1735431206537,2.5712,194.83,194.78,4.1397]
[1735431206939,2.5709,194.85,194.78,1.568]
[1735431207243,3.0,194.89,194.8,2.5714]
[1735431208041,5.1392,194.94,194.8,2.5714]
[1735431208240,3.0,194.9,194.8,2.5714]
[1735431208543,2.571,194.84,194.8,2.5714]
[1735431209341,3.0,194.9,194.78,15.82117562]
[1735431209546,2.5706,194.87,194.82,2.5712]
[1735431210946,2.5703,194.89,194.81,15.67277562]
[1735431211241,3.0,194.93,194.81,15.67277562]
[1735431211444,3.0,194.93,194.84,12.67277562]
[1735431211849,3.0,194.93,194.86,2.5706]
[1735431211850,2.5701,194.9,194.86,2.5706]
[1735431212050,3.0,194.93,194.84,12.67277562]
[1735431212354,8.10465272,194.91,194.84,8.10465272]
[1735431212945,2.5705,194.87,194.84,8.10465272]
[1735431213148,9.70133037,195.0,194.86,8.10465272]
[1735431213345,8.10465272,195.0,194.9,8.10465272]
[1735431213643,2.5694,194.96,194.92,8.10465272]
[1735431214347,2.5694,194.96,194.91,2.57]
[1735431214552,12.65312318,194.99,194.87,7.1524]
[1735431214750,3.0,194.98,194.87,4.582]
[1735431215161,12.65312318,194.96,194.87,1.582]
[1735431215852,12.65312318,194.93,194.82,3.0]
[1735431216047,15.65312318,194.93,194.82,3.0]
[1735431217255,15.65312318,194.93,194.8,16.80652318]
[1735431217658,2.5708,194.85,194.8,16.80652318]
[1735431217854,3.0,194.88,194.8,1.582]
[1735431218257,2.5713,194.81,194.75,29.79250509]
[1735431218463,2.5713,194.81,194.75,2.9828]
[1735431218654,12.65312318,194.87,194.75,5.5549]
[1735431218960,2.5714,194.81,194.75,5.5549]
[1735431219560,2.5714,194.8,194.75,5.5549]
[1735431221162,2.5714,194.8,194.75,2.9828]
[1735431221362,12.65312318,194.87,194.75,2.9828]
[1735431222064,2.5719,194.77,194.75,1.5128]
[1735431222363,12.65312318,194.84,194.75,1.5128]
[1735431222563,2.572,194.76,194.73,1.4906]
[1735431222753,3.0,194.83,194.74,12.65312318]
[1735431223963,2.5717,194.78,194.74,15.22532318]
[1735431224163,3.0,194.83,194.74,12.65312318]
[1735431225560,2.572,194.76,194.74,12.65312318]
[1735431225759,12.65312318,194.87,194.74,12.65312318]
[1735431226059,3.0,194.86,194.74,12.65312318]
[1735431226563,12.65312318,194.84,194.73,1.4906]
[1735431226766,12.65312318,194.81,194.72,3.1195]
[1735431226962,2.5724,194.73,194.72,3.1195]
[1735431227462,2.5722,194.75,194.72,3.1195]
[1735431228461,2.5718,194.78,194.72,3.1195]
[1735431228661,3.02,194.8,194.72,3.1195]
[1735431229572,2.5722,194.74,194.72,3.1195]
[1735431231164,3.02,194.8,194.72,3.1195]
[1735431231364,2.5721,194.75,194.72,3.1195]
[1735431231867,3.02,194.8,194.72,3.1195]
[1735431232062,2.5722,194.74,194.72,3.1195]
[1735431237470,2.5724,194.73,194.72,3.1195]
[1735431237673,3.02,194.8,194.72,3.1195]
[1735431238276,11.13405418,194.8,194.72,11.23355418]
[1735431238470,2.5723,194.74,194.72,11.23355418]
[1735431239073,67.51402163,194.88,194.72,11.23355418]
[1735431239275,8.11405418,194.84,194.77,8.11405418]
[1735431239569,62.37322163,194.88,194.77,8.11405418]
[1735431239775,2.5714,194.8,194.77,10.68575418]
[1735431240770,2.5714,194.8,194.72,3.1195]
[1735431241069,11.13405418,194.81,194.72,3.1195]
[1735431241275,3.02,194.81,194.75,8.11405418]
[1735431242171,2.5717,194.78,194.75,8.11405418]
[1735431243574,2.5706,194.87,194.77,8.11405418]
[1735431243775,70.47907545,194.9,194.81,8.11405418]
[1735431243973,3.02,194.89,194.83,8.11405418]
[1735431244175,2.5709,194.84,194.83,8.11405418]
[1735431244976,2.5709,194.84,194.81,8.11405418]
[1735431246078,2.5709,194.84,194.81,9.58975418]
[1735431246279,2.5708,194.85,194.81,12.16105418]
[1735431246481,2.5708,194.85,194.81,9.58975418]
[1735431246882,2.5708,194.85,194.81,12.16105418]
[1735431247182,2.5708,194.85,194.81,4.047]
[1735431247381,2.5708,194.85,194.81,12.16105418]
[1735431247580,5.1376,195.01,194.83,8.11405418]
[1735431247778,8.11405418,194.95,194.87,8.11405418]
[1735431247978,8.11405418,194.95,194.89,8.11405418]
[1735431248180,2.57,194.92,194.89,8.11405418]
[1735431248781,8.11405418,194.97,194.89,8.11405418]
[1735431250080,2.5699,194.92,194.89,8.11405418]
[1735431250273,15.67667445,194.99,194.87,2.5704]
[1735431250475,2.57,194.91,194.87,2.5704]
[1735431250671,15.67667445,194.99,194.85,3.02]
[1735431250983,2.5698,194.93,194.84,1.5247]
[1735431251174,15.65667445,194.93,194.82,1.5196]
[1735431252073,2.5702,194.9,194.82,1.5196]
[1735431252281,15.65667445,194.93,194.82,1.5196]
[1735431253485,2.5709,194.85,194.82,1.5196]
[1735431256381,15.65667445,194.93,194.82,1.5196]
[1735431256580,3.0,194.93,194.82,14.17627445]
[1735431256882,3.0,194.95,194.85,12.65667445]
[1735431257481,12.65667445,194.99,194.85,12.65667445]
[1735431257685,3.0,194.97,194.86,1.5304]
[1735431258484,2.5699,194.92,194.88,2.5704]
[1735431259086,2.5699,194.92,194.87,2.5705]
[1735431259784,2.5699,194.92,194.86,1.5304]
[1735431259987,2.5699,194.92,194.88,2.5704]
[1735431260184,3.0,194.97,194.86,1.5304]
[1735431260383,3.0,194.97,194.86,4.5304]
[1735431261185,15.65667445,194.97,194.86,4.5304]
[1735431261381,15.65667445,194.97,194.86,1.5304]
[1735431261788,2.5705,194.87,194.86,1.5304]
[1735431262190,15.65667445,194.97,194.86,4.101]
[1735431262690,15.65667445,194.97,194.86,1.5304]
[1735431263387,3.0,194.96,194.86,1.5304]
[1735431263691,2.5703,194.89,194.86,1.5304]
[1735431264894,2.57,194.92,194.87,15.22707445]
[1735431265093,2.57,194.92,194.87,12.65667445]
[1735431265592,2.57,194.92,194.88,2.5704]
[1735431267095,2.57,194.91,194.87,15.22717445]
[1735431267494,3.0,194.98,194.87,12.65667445]
[1735431267895,2.5698,194.93,194.88,2.5703]
[1735431268098,3.0,194.98,194.88,2.5703]
[1735431270396,2.5699,194.92,194.88,2.5703]
[1735431272300,2.5697,194.94,194.91,8.09758543]
[1735431272496,13.21048954,195.0,194.93,8.09758543]
[1735431272998,2.11290411,195.0,194.97,8.09758543]
[1735431273205,62.16538787,195.01,194.97,8.09758543]
[1735431274800,2.569,194.99,194.97,8.09758543]
[1735431275000,62.16538787,195.01,194.93,8.09758543]
[1735431275207,8.09758543,195.0,194.93,8.09758543]
[1735431275398,11.09758543,195.0,194.93,8.09758543]
[1735431276101,8.09758543,194.98,194.91,8.09758543]
[1735431277403,2.5699,194.92,194.91,8.09758543]
[1735431281408,2.5701,194.9,194.89,1.4761]
[1735431281809,8.09758543,194.98,194.89,1.4761]
[1735431282007,2.57,194.92,194.9,8.09758543]
[1735431284510,3.0,195.0,194.9,8.09758543]
[1735431284706,2.57,194.91,194.9,8.09758543]
[1735431286914,2.5699,194.92,194.9,8.09758543]
[1735431287111,8.09758543,194.97,194.9,8.09758543]
[1735431287312,73.2629733,195.01,194.94,8.09758543]
[1735431287509,2.5694,194.96,194.94,8.09758543]
[1735431290111,70.2629733,195.01,194.94,8.09758543]
[1735431290315,2.5695,194.95,194.94,8.09758543]
[1735431292114,8.09758543,194.97,194.9,8.09758543]
[1735431293414,2.57,194.91,194.9,8.09758543]
[1735431293916,8.09758543,194.95,194.89,1.4761]
[1735431294120,8.09758543,194.93,194.85,38.00629052]
[1735431294615,2.5706,194.87,194.85,38.00629052]
[1735431295211,2.5706,194.87,194.85,9.68378543]
[1735431296519,8.09758543,194.93,194.85,9.68378543]
[1735431296721,8.09758543,194.95,194.87,8.09758543]
[1735431297420,8.09758543,194.97,194.89,8.09758543]
[1735431298216,2.5701,194.91,194.89,8.09758543]
[1735431300325,2.5701,194.9,194.89,8.09758543]
[1735431300624,8.09758543,194.95,194.87,8.09758543]
[1735431300823,8.09758543,194.93,194.85,9.68378543]